bitfinex/quotes_ETHUSD_20250623
["timestamp","ask_amount","ask_price","bid_price","bid_amount"]
[1750647983106,10.1282,2245.5,2245.3,4.79]
[1750647987218,10.1771,2245.5,2245.3,4.79]
[1750647990754,10.1282,2245.5,2245.3,4.79]
[1750647991652,10.5,2245.6,2245.3,4.79]
[1750647991830,10.5,2245.6,2245.4,0.8877]
[1750647991831,9.157,2245.5,2245.4,0.8877]
[1750647993113,10.5,2245.6,2245.4,0.8877]
[1750647993321,9.157,2245.5,2245.4,0.8877]
[1750647994142,9.157,2245.5,2245.4,5.6777]
[1750647994301,0.5,2245.6,2245.5,0.0563]
[1750647994522,9.657,2245.6,2245.5,4.8463]
[1750647996042,0.5,2245.6,2245.5,6.2006]
[1750647996250,7.73,2245.6,2245.5,6.2006]
[1750647996409,7.73,2245.6,2245.5,6.877437]
[1750647998852,0.4998,2247.1,2245.7,0.0563]
[1750647999052,9.156,2247.0,2246.1,0.0563]
[1750647999346,1.01448,2246.9,2246.1,0.0563]
[1750647999544,11.01448,2246.9,2246.1,0.0563]
[1750647999745,1.01448,2246.9,2246.1,1.395003]
[1750648000065,1.01448,2246.9,2246.2,0.10081424]
[1750648000220,1.01448,2246.9,2246.4,0.7993]
[1750648000221,7.234,2246.8,2246.4,0.7993]
[1750648000414,7.234,2246.8,2246.5,0.0563]
[1750648001197,0.4998,2247.1,2246.5,0.55]
[1750648001317,1.916,2246.7,2246.5,0.55]
[1750648001523,7.233,2246.6,2246.5,0.6063]
[1750648002041,1.916,2246.7,2246.5,0.6063]
[1750648002231,7.233,2246.6,2246.5,0.6063]
[1750648003749,1.915,2246.9,2246.6,0.0608]
[1750648003958,0.2243986,2247.4,2246.7,0.55]
[1750648004257,1.915,2247.2,2246.9,0.0608]
[1750648005135,7.242,2247.1,2247.0,1.052787]
[1750648005327,7.242,2247.1,2247.0,1.826487]
[1750648006455,0.2243986,2247.4,2247.0,1.826487]
[1750648006655,9.157,2247.3,2247.0,1.765687]
[1750648007223,9.157,2247.3,2247.1,0.0608]
[1750648008075,9.157,2247.3,2247.0,1.765687]
[1750648008258,9.157,2247.3,2247.1,0.0608]
[1750648009942,1.915,2247.3,2247.0,1.765687]
[1750648010142,7.237,2247.2,2247.0,1.765687]
[1750648010383,7.237,2247.2,2247.1,0.0608]
[1750648011878,7.237,2247.2,2247.0,1.826487]
[1750648012280,7.237,2247.2,2247.0,0.7737]
[1750648012462,7.237,2247.2,2247.1,1.399001]
[1750648012869,7.237,2247.2,2246.8,0.811]
[1750648013267,0.2243986,2247.4,2247.0,0.0608]
[1750648013473,0.2243986,2247.4,2246.9,1.888243]
[1750648013674,9.15,2247.3,2246.9,2.1581673]
[1750648013986,9.15,2247.3,2247.0,4.79]
[1750648015559,9.15,2247.3,2247.0,4.8508]
[1750648016474,9.15,2247.3,2247.0,4.79]
[1750648017061,9.1989,2247.3,2247.0,4.79]
[1750648017655,9.15,2247.3,2247.0,4.79]
[1750648017985,9.15,2247.3,2247.1,4.79]
[1750648018691,9.148,2247.2,2247.1,4.79]
[1750648021700,0.2243986,2247.4,2247.1,4.8508]
[1750648021854,0.2243986,2247.4,2247.3,8.43972325]
[1750648022054,0.2243986,2247.4,2247.3,13.22972325]
[1750648022663,1.915,2248.2,2247.7,0.55]
[1750648022876,7.238,2248.1,2248.0,0.0608]
[1750648023092,7.238,2248.1,2247.8,0.7591]
[1750648023289,7.2989,2248.1,2248.0,1.3377]
[1750648023696,7.2989,2248.1,2247.8,0.7591]
[1750648023899,7.2989,2248.1,2247.9,1.337754]
[1750648025097,0.0609,2248.0,2247.9,1.337754]
[1750648025390,0.0609,2248.0,2247.7,4.79]
[1750648025595,0.0609,2248.0,2247.8,1.337843]
[1750648026166,0.0609,2248.0,2247.7,4.79]
[1750648026676,0.0609,2248.0,2247.7,1.337921]
[1750648027801,0.0609,2248.0,2247.6,1.337968]
[1750648027998,0.0609,2247.8,2247.6,1.337968]
[1750648028177,9.15,2247.7,2247.4,4.79]
[1750648028375,0.0609,2247.6,2247.5,4.79]
[1750648029097,9.153,2247.6,2247.5,4.79]
[1750648029276,7.241,2247.6,2247.5,5.55417369]
[1750648030001,7.241,2247.6,2247.5,5.49337369]
[1750648030200,7.241,2247.6,2247.5,5.55417369]
[1750648030362,1.93,2247.7,2247.6,1.4224]
[1750648030567,9.171,2247.7,2247.6,6.90842648]
[1750648032001,10.4998,2248.3,2247.7,0.55]
[1750648032296,10.4998,2248.3,2247.6,6.29762648]
[1750648032297,0.0609,2248.1,2247.8,4.79]
[1750648032796,0.0609,2248.1,2248.0,0.8613]
[1750648032797,7.239,2248.1,2248.0,0.8613]
[1750648032999,7.239,2248.1,2248.0,0.799]
[1750648033566,7.239,2248.1,2248.0,1.6799622]
[1750648035117,7.239,2248.1,2248.0,1.0676622]
[1750648035263,7.239,2248.1,2248.0,0.799]
[1750648037071,7.239,2248.1,2248.0,4.79]
[1750648038515,7.239,2248.1,2248.0,4.8523]
[1750648038887,7.239,2248.1,2248.0,4.79]
[1750648039713,7.2954,2248.1,2248.0,4.79]
[1750648040211,0.4998,2248.2,2248.0,4.79]
[1750648040409,0.74278,2248.2,2247.9,1.337622]
[1750648040924,0.4998,2248.1,2247.9,1.337622]
[1750648041135,0.4998,2248.1,2247.4,4.79]
[1750648041412,7.239,2248.0,2247.5,1.338058]
[1750648041714,7.239,2248.0,2247.5,1.400358]
[1750648042211,7.239,2248.0,2247.5,1.338058]
[1750648042382,0.0564,2247.9,2247.5,1.338058]
[1750648042584,1.93,2247.8,2247.5,1.338058]
[1750648042807,1.9864,2247.8,2247.5,1.338058]
[1750648047829,0.4998,2248.1,2247.6,0.0623]
[1750648047830,9.168,2247.7,2247.6,0.0623]
[1750648048121,9.168,2247.7,2247.5,1.338058]
[1750648048299,9.168,2247.7,2247.5,1.400358]
[1750648051493,9.168,2247.7,2247.5,1.338058]
[1750648053436,9.168,2247.7,2247.6,4.79]
[1750648056223,9.6678,2247.7,2247.6,4.79]
[1750648057630,9.6678,2247.7,2247.5,6.128058]
[1750648057936,10.0,2247.6,2247.4,4.79]
[1750648058135,10.0,2247.6,2247.5,1.338172]
[1750648058316,9.16,2247.6,2247.5,1.338172]
[1750648058742,9.159,2247.6,2247.5,1.9509892]
[1750648058939,9.159,2247.6,2247.5,2.0132892]
[1750648059234,9.159,2247.6,2247.5,1.338172]
[1750648059439,9.7152,2247.6,2247.5,1.338172]
[1750648059640,10.1588,2247.6,2247.5,1.338172]
[1750648060635,10.1588,2247.6,2247.4,4.79]
[1750648060636,0.0564,2247.5,2247.4,4.79]
[1750648061006,0.0564,2247.5,2247.4,6.128243]
[1750648062103,1.02152,2247.5,2247.1,4.79]
[1750648062304,1.02152,2247.5,2247.2,4.79]
[1750648062508,0.4998,2247.3,2247.2,6.128321]
[1750648062740,0.5615,2247.3,2247.2,1.338321]
[1750648062941,0.5615,2247.3,2246.8,0.8472]
[1750648062942,0.5615,2247.3,2247.0,4.79]
[1750648063242,0.0617,2247.2,2247.1,1.33844]
[1750648064218,0.0617,2247.2,2246.9,4.79]
[1750648064543,9.2127,2247.1,2246.9,4.79]
[1750648064742,9.2127,2247.1,2247.0,1.3385]
[1750648065510,9.151,2247.1,2246.6,5.6585]
[1750648065739,0.0617,2247.0,2246.6,3.18558614]
[1750648065921,0.0617,2247.0,2246.6,7.10708614]
[1750648065922,0.0617,2246.9,2246.6,7.10708614]
[1750648066316,0.0617,2246.9,2246.6,8.44562714]
[1750648066546,0.0617,2246.9,2246.6,1.338541]
[1750648066748,0.5615,2246.9,2246.6,1.338541]
[1750648066907,0.5615,2246.9,2246.0,0.8013]
[1750648067241,0.0617,2246.8,2246.2,1.338793]
[1750648067820,0.0617,2246.6,2246.2,1.338793]
[1750648068019,9.152,2246.5,2246.2,1.338793]
[1750648068825,10.4998,2246.4,2246.2,1.338793]
[1750648069045,0.0617,2246.3,2246.2,1.338793]
[1750648069265,9.16,2246.3,2246.2,1.338793]
[1750648069435,9.16,2246.3,2246.2,1.400393]
[1750648070251,9.16,2246.3,2246.2,1.338793]
[1750648071154,9.2217,2246.3,2246.2,1.338793]
[1750648071378,0.4998,2246.2,2245.8,0.0616]
[1750648071861,0.2998,2246.2,2245.8,0.0616]
[1750648072020,0.2998,2246.2,2246.1,1.338793]
[1750648073758,0.2998,2246.2,2245.7,0.8288]
[1750648073759,0.3615,2246.2,2245.7,0.8288]
[1750648074160,0.0617,2246.1,2245.7,1.339091]
[1750648074328,1.25195,2246.2,2245.7,1.339091]
[1750648074528,0.0617,2246.1,2245.7,1.339091]
[1750648074954,11.25195,2246.2,2245.7,1.339091]
[1750648075158,0.51602035,2246.1,2245.7,1.339091]
[1750648075364,0.2998,2245.9,2245.7,1.339091]
[1750648075563,9.161,2245.8,2245.7,1.339091]
[1750648078329,9.161,2245.8,2245.1,0.7963]
[1750648078530,9.161,2245.8,2244.7,0.0616]
[1750648078531,0.0617,2245.5,2244.7,0.0616]
[1750648078730,0.0617,2245.5,2245.4,1.339444]
[1750648078946,0.0617,2245.5,2244.8,0.7963]
[1750648079264,10.9161,2245.7,2244.7,4.79]
[1750648079265,0.2998,2245.4,2244.7,4.79]
[1750648079464,9.2257,2245.3,2244.7,4.79]
[1750648079635,0.0617,2245.2,2244.9,1.339444]
[1750648080252,10.11655,2245.3,2244.9,1.339444]
[1750648080455,0.2998,2245.0,2244.9,1.339444]
[1750648080660,0.3615,2245.0,2244.6,4.79]
[1750648081035,0.3615,2245.0,2244.6,6.129821]
[1750648081234,0.3615,2245.0,2244.7,0.8841]
[1750648081235,7.243,2244.9,2244.7,0.8841]
[1750648081439,7.243,2244.9,2244.8,0.0616]
[1750648081960,7.243,2244.9,2244.8,4.8516]
[1750648082272,0.2998,2245.9,2245.0,0.7668]
[1750648082446,9.173,2245.8,2245.2,0.0616]
[1750648082659,10.95345,2245.7,2245.1,4.79]
[1750648082862,10.0,2245.7,2245.1,4.79]
[1750648084373,0.0617,2245.6,2245.1,4.79]
[1750648084985,0.0617,2245.6,2245.1,4.8516]
[1750648085764,0.0617,2245.6,2245.2,4.79]
[1750648086877,10.0,2245.7,2245.2,4.79]
[1750648086878,10.0,2245.7,2245.2,4.8516]
[1750648087080,10.0,2245.7,2245.3,0.0616]
[1750648087689,9.171,2245.6,2245.3,0.54676]
[1750648087990,0.0617,2246.1,2245.4,0.761]
[1750648087991,0.3615,2246.1,2245.4,0.761]
[1750648088180,9.172,2245.9,2245.5,4.83453412]
[1750648088353,9.172,2245.9,2245.7,0.0616]
[1750648089384,9.172,2245.9,2245.7,1.400734]
[1750648089693,0.0617,2246.3,2245.7,1.400734]
[1750648089694,10.2998,2246.4,2245.8,0.0616]
[1750648089862,9.173,2245.9,2245.8,0.0616]
[1750648090478,9.173,2245.9,2245.8,0.8662]
[1750648090661,1.921,2245.9,2245.8,0.8662]
[1750648090859,9.171,2245.9,2245.8,0.8662]
[1750648091058,9.171,2245.9,2245.8,1.62764074]
[1750648091292,9.171,2245.9,2245.7,1.339134]
[1750648091491,9.4708,2245.9,2245.7,1.339134]
[1750648091654,0.2998,2245.9,2245.7,1.339134]
[1750648091862,9.19,2245.8,2245.7,1.339134]
[1750648095897,9.2488,2245.8,2245.7,1.339134]
[1750648096197,11.24388,2245.8,2245.7,1.339134]
[1750648097277,11.18508,2245.8,2245.7,1.339134]
[1750648097461,9.19,2245.8,2245.7,1.339134]
[1750648098392,9.2488,2245.8,2245.7,1.339134]
[1750648099306,9.5486,2245.8,2245.4,4.79]
[1750648099611,0.0588,2245.7,2245.4,4.79]
[1750648099769,0.0588,2245.7,2245.5,1.339444]
[1750648099770,10.95486,2245.7,2245.5,1.339444]
[1750648100097,0.0588,2245.6,2245.1,4.79]
[1750648100297,7.246,2245.5,2245.1,4.79]
[1750648100482,7.246,2245.5,2245.2,4.79]
[1750648100888,0.2998,2245.4,2245.1,1.339486]
[1750648101075,1.938,2245.3,2245.1,1.398186]
[1750648101279,7.245,2245.2,2245.1,1.398186]
[1750648102464,0.2998,2245.8,2245.2,0.8286]
[1750648102670,19.185,2245.7,2245.3,0.0587]
[1750648102883,19.2438,2245.7,2245.2,0.7699]
[1750648103196,0.0588,2245.6,2245.2,0.7699]
[1750648103790,0.0588,2245.6,2245.1,1.339486]
[1750648103967,0.0588,2245.6,2245.1,1.398186]
[1750648104404,0.0588,2245.5,2245.1,1.339486]
[1750648104701,7.3048,2245.4,2245.1,1.339486]
[1750648104916,0.5,2245.3,2245.1,1.339486]
[1750648105100,1.938,2245.2,2245.1,1.339486]
[1750648106005,0.5,2245.3,2245.1,1.398186]
[1750648106201,9.19,2245.2,2245.1,1.398186]
[1750648107405,9.188,2245.2,2245.1,2.172186]
[1750648108882,9.188,2245.2,2245.1,1.339486]
[1750648109100,11.2156,2245.2,2245.1,1.339486]
[1750648109309,11.1568,2245.2,2245.1,1.339486]
[1750648110274,11.1568,2245.2,2244.8,4.79]
[1750648110489,0.3586,2245.1,2244.9,1.339719]
[1750648111103,0.0588,2245.0,2244.6,4.79]
[1750648111306,10.2998,2245.1,2244.6,4.79]
[1750648111307,9.188,2244.9,2244.6,4.79]
[1750648111512,1.938,2244.9,2244.8,0.8149]
[1750648111803,9.189,2244.9,2244.8,0.8736]
[1750648112198,9.189,2244.9,2244.8,5.6636]
[1750648112405,9.189,2244.9,2244.8,6.42403956]
[1750648113177,0.5,2245.3,2245.0,0.0587]
[1750648113377,7.251,2245.2,2245.1,0.8149]
[1750648113576,7.251,2245.2,2245.1,5.6636]
[1750648114106,7.251,2245.2,2245.1,5.6049]
[1750648114407,7.251,2245.2,2245.1,5.6636]
[1750648115074,7.251,2245.2,2245.1,6.22996]
[1750648116081,2.438,2245.3,2245.1,6.22996]
[1750648116284,7.251,2245.2,2245.1,6.22996]
[1750648117077,2.438,2245.3,2245.1,6.22996]
[1750648117078,2.438,2245.3,2245.2,0.8438]
[1750648118410,2.438,2245.3,2245.2,5.6338]
[1750648118612,2.438,2245.3,2245.2,7.29587764]
[1750648118810,2.438,2245.3,2245.2,7.84587764]
[1750648119912,0.5,2245.3,2245.2,7.84587764]
[1750648120095,0.5,2245.3,2245.2,7.89041312]
[1750648120307,9.187,2245.7,2245.4,0.55]
[1750648120508,9.187,2245.7,2245.6,0.8438]
[1750648120695,9.187,2245.7,2245.6,1.46218]
[1750648121384,9.187,2245.7,2245.6,2.801254]
[1750648123290,9.187,2245.7,2245.6,1.339074]
[1750648124235,9.187,2245.7,2245.6,6.129074]
[1750648127325,9.187,2245.7,2245.6,4.79]
[1750648127326,9.2486,2245.7,2245.6,4.79]
[1750648127935,19.4868,2245.7,2245.3,1.339438]
[1750648128230,19.4868,2245.7,2244.8,5.6024]
[1750648128231,0.2998,2245.4,2244.8,5.6024]
[1750648128435,0.2998,2245.4,2245.0,1.339654]
[1750648128436,7.3076,2245.3,2245.0,1.339654]
[1750648128594,1.931,2245.2,2245.0,1.339654]
[1750648132532,1.9926,2245.2,2245.0,1.339654]
[1750648132829,1.9926,2245.2,2244.6,5.6794]
[1750648132830,1.28526,2245.1,2244.6,5.6794]
[1750648133132,0.3614,2245.1,2244.8,1.339767]
[1750648133944,0.2998,2245.1,2244.4,0.831]
[1750648134119,0.0616,2245.0,2244.4,0.831]
[1750648134324,0.0616,2245.0,2244.4,0.8894]
[1750648134522,0.0616,2245.0,2244.4,1.5064419]
[1750648134705,0.0616,2245.0,2244.5,1.339833]
[1750648134908,0.0616,2245.0,2244.5,1.398233]
[1750648135131,0.2998,2245.1,2244.5,1.339833]
[1750648135309,0.0383413,2244.9,2244.5,1.339833]
[1750648135514,7.244,2244.8,2244.5,1.398233]
[1750648135711,1.931,2244.7,2244.5,1.398233]
[1750648135912,2.2308,2244.7,2244.5,1.339833]
[1750648139238,2.2308,2244.7,2244.3,4.8484]
[1750648139946,2.2308,2244.7,2244.4,6.129977]
[1750648140246,3.18418,2244.7,2244.4,6.129977]
[1750648140408,3.18418,2244.7,2244.0,0.809]
[1750648140409,0.059,2244.6,2244.1,4.79]
[1750648140608,0.059,2244.6,2244.3,1.34006]
[1750648141041,0.059,2244.6,2244.1,4.8484]
[1750648141402,0.059,2244.6,2244.1,6.130108]
[1750648141641,0.059,2244.6,2244.2,0.0584]
[1750648142354,0.059,2244.6,2244.1,6.130108]
[1750648142355,11.048718,2244.6,2244.1,6.130108]
[1750648142563,0.2998,2244.5,2243.7,5.61]
[1750648142709,0.3588,2244.3,2243.8,4.8484]
[1750648142909,9.173,2244.2,2243.8,4.79]
[1750648143138,9.173,2244.2,2243.9,1.398712]
[1750648143524,9.173,2244.2,2243.9,1.340312]
[1750648144554,1.931,2244.2,2243.9,1.398712]
[1750648144738,7.242,2244.1,2243.9,2.0353432]
[1750648144946,7.242,2244.1,2244.0,0.0584]
[1750648145470,0.2998,2244.5,2244.0,4.79]
[1750648145624,0.2998,2244.7,2244.3,0.0584]
[1750648145831,9.174,2244.6,2244.3,4.79]
[1750648146134,9.174,2244.6,2244.5,0.0584]
[1750648146517,9.174,2244.6,2244.3,4.8484]
[1750648147419,9.174,2244.6,2244.4,0.0584]
[1750648147617,11.0078,2244.9,2244.5,0.0584]
[1750648147818,9.174,2244.8,2244.4,0.0584]
[1750648148046,9.174,2244.8,2244.5,0.8258]
[1750648148245,9.174,2244.8,2244.6,0.0584]
[1750648148419,9.174,2244.8,2244.5,0.8258]
[1750648148617,9.174,2244.8,2244.5,0.8842]
[1750648148855,9.174,2244.8,2244.5,2.224087]
[1750648149246,9.174,2244.8,2244.5,2.165687]
[1750648149712,9.174,2244.8,2244.5,1.339887]
[1750648149916,9.173,2244.7,2244.5,1.339887]
[1750648150550,11.0078,2244.9,2244.6,0.0584]
[1750648150741,9.173,2244.8,2244.6,0.0584]
[1750648151051,9.173,2244.8,2244.6,4.79]
[1750648151238,1.931,2244.7,2244.6,4.79]
[1750648151622,1.931,2244.7,2244.6,4.8484]
[1750648151822,1.931,2244.7,2244.6,4.79]
[1750648152425,9.172,2244.7,2244.6,4.79]
[1750648153261,9.172,2244.7,2244.6,4.8489]
[1750648153757,10.0,2245.1,2244.6,4.8489]
[1750648154061,10.0,2244.9,2244.7,0.0589]
[1750648154553,9.163,2245.0,2244.7,0.0589]
[1750648154739,9.163,2245.0,2244.7,0.8046]
[1750648155056,9.163,2245.0,2244.8,0.0589]
[1750648155224,9.163,2245.0,2244.8,4.8489]
[1750648155668,1.922,2244.9,2244.8,5.35045558]
[1750648155959,9.162,2244.9,2244.8,5.35045558]
[1750648156644,1.922,2244.9,2244.8,5.35045558]
[1750648156820,9.161,2244.9,2244.8,5.35045558]
[1750648157022,1.922,2244.9,2244.8,5.35045558]
[1750648157219,1.922,2245.1,2245.0,0.7777]
[1750648157449,9.161,2245.1,2245.0,1.44352556]
[1750648158659,1.922,2245.1,2245.0,1.44352556]
[1750648158849,9.161,2245.1,2245.0,1.44352556]
[1750648159832,9.16,2245.1,2245.0,1.44352556]
[1750648161273,9.16,2245.1,2245.0,2.78292756]
[1750648162582,9.16,2245.1,2245.0,1.339402]
[1750648162889,9.16,2245.1,2245.0,6.129402]
[1750648163653,9.16,2245.1,2245.0,6.188302]
[1750648166259,9.16,2245.1,2245.0,6.129402]
[1750648167759,9.16,2245.1,2245.0,6.188302]
[1750648168060,9.16,2245.1,2245.0,7.5903322]
[1750648173397,9.16,2245.1,2245.0,6.188302]
[1750648175694,10.708,2245.7,2245.2,0.0589]
[1750648175901,9.157,2245.6,2245.4,0.0589]
[1750648176267,1.921,2245.6,2245.5,0.0589]
[1750648176462,9.157,2245.6,2245.5,0.8651]
[1750648176878,9.157,2245.6,2245.5,5.6551]
[1750648177503,9.157,2245.6,2245.5,4.8489]
[1750648177712,9.157,2245.6,2245.5,4.79]
[1750648178399,11.1494,2245.6,2245.5,4.79]
[1750648178778,11.506,2245.6,2245.5,4.79]
[1750648180519,11.447,2245.6,2245.3,1.339462]
[1750648180693,0.059,2245.5,2245.3,1.339462]
[1750648184338,11.506,2245.6,2245.3,1.339462]
[1750648184511,4.211,2245.6,2245.3,1.399162]
[1750648184694,4.211,2245.6,2245.4,0.0597]
[1750648184695,7.236,2245.5,2245.4,0.0597]
[1750648185323,9.154,2245.5,2245.4,0.0597]
[1750648185633,10.708,2245.7,2245.4,0.0597]
[1750648185811,9.153,2245.6,2245.4,0.0597]
[1750648186006,9.153,2245.5,2245.4,0.0597]
[1750648186215,9.153,2245.5,2245.4,0.8647]
[1750648186413,9.153,2245.5,2245.4,5.6547]
[1750648186609,1.918,2245.6,2245.5,0.0597]
[1750648186936,9.153,2245.6,2245.5,0.0597]
[1750648190209,9.153,2245.6,2245.4,5.6547]
[1750648190422,9.153,2245.6,2245.5,0.0597]
[1750648190622,9.153,2245.6,2245.4,5.6547]
[1750648190824,9.153,2245.6,2245.4,4.79]
[1750648191437,9.153,2245.6,2245.4,4.8497]
[1750648191737,7.235,2245.5,2245.4,4.8497]
[1750648192731,7.235,2245.5,2245.4,5.5481162]
[1750648194742,1.918,2245.6,2245.5,0.0597]
[1750648194910,9.153,2245.6,2245.5,0.8444]
[1750648195311,9.153,2245.6,2245.5,1.3944]
[1750648195930,9.153,2245.6,2245.4,5.4884162]
[1750648195931,9.153,2245.6,2245.4,4.79]
[1750648196819,9.153,2245.6,2245.5,0.0597]
[1750648197426,0.2976,2246.3,2245.6,0.7531]
[1750648197642,9.152,2246.2,2245.8,0.0597]
[1750648197823,1.918,2246.2,2245.9,0.7531]
[1750648198032,1.918,2246.2,2246.0,0.0597]
[1750648198233,1.918,2246.2,2246.1,4.8497]
[1750648198548,9.152,2246.2,2246.1,4.8497]
[1750648199347,1.918,2246.2,2246.1,4.8497]
[1750648199645,9.152,2246.2,2246.1,4.8497]
[1750648200117,9.152,2246.2,2246.1,5.6411]
[1750648200317,9.152,2246.2,2246.1,7.13105713]
[1750648200518,7.234,2246.2,2246.1,7.07135713]
[1750648200718,7.234,2246.2,2246.1,7.13105713]
[1750648200914,1.918,2246.4,2246.2,0.0597]
[1750648201114,1.918,2246.4,2246.3,0.751]
[1750648201319,9.152,2246.4,2246.3,0.70754725]
[1750648202042,9.152,2246.4,2246.3,0.76724725]
[1750648203146,9.152,2246.4,2246.3,0.70754725]
[1750648203344,9.152,2246.4,2246.1,7.10257248]
[1750648203345,9.152,2246.4,2246.1,6.33965713]
[1750648204116,9.152,2246.4,2246.2,4.79]
[1750648205664,0.3566,2246.2,2246.1,4.79]
[1750648206590,0.2976,2246.2,2246.1,4.79]
[1750648207150,9.4486,2246.2,2246.1,4.79]
[1750648207951,9.5076,2246.2,2246.1,4.79]
[1750648209182,0.3566,2246.2,2246.1,4.79]
[1750648209337,9.5076,2246.2,2246.1,4.79]
[1750648210029,9.5076,2246.2,2245.9,4.79]
[1750648212241,0.059,2246.1,2245.9,4.79]
[1750648213571,10.39936,2246.2,2245.9,4.79]
[1750648213769,9.4486,2246.2,2245.9,4.79]
[1750648216835,9.4486,2246.2,2245.9,6.190485]
[1750648217165,9.5075,2246.2,2245.9,6.129085]
[1750648217371,0.95075,2246.1,2245.9,6.129085]
[1750648217582,9.5075,2246.2,2245.9,6.129085]
[1750648220668,9.4486,2246.2,2245.9,6.129085]
[1750648220857,9.4486,2246.2,2245.9,6.190485]
[1750648221805,9.151,2246.2,2245.9,6.190485]
[1750648222092,9.151,2246.2,2246.0,4.79]
[1750648226190,9.151,2246.2,2246.0,4.8514]
[1750648226770,9.151,2246.2,2246.0,6.19039]
[1750648227193,9.151,2246.2,2246.0,6.12899]
[1750648232198,9.151,2246.2,2246.0,6.19039]
[1750648233732,9.151,2246.2,2246.0,6.12899]
[1750648238545,10.16065,2246.2,2246.0,6.12899]
[1750648238887,0.3565,2246.1,2246.0,6.12899]
[1750648239087,10.10175,2246.2,2246.0,6.12899]
[1750648239358,9.151,2246.2,2246.0,6.19039]
[1750648239639,9.151,2246.2,2246.0,1.40039]
[1750648239932,9.148,2246.1,2246.0,1.40039]
[1750648241389,0.3565,2246.5,2246.0,1.33899]
[1750648241590,19.148,2246.4,2246.1,0.0614]
[1750648241826,10.0,2246.4,2246.0,1.40039]
[1750648242023,9.148,2246.3,2246.0,1.40039]
[1750648242447,10.0,2246.4,2246.0,1.39909]
[1750648242591,1.917,2246.2,2246.1,0.0601]
[1750648242796,1.917,2246.2,2246.1,1.69788784]
[1750648243540,1.917,2246.2,2246.1,0.8454]
[1750648244101,1.917,2246.2,2246.1,2.184186]
[1750648245101,9.148,2246.2,2246.1,2.184186]
[1750648245533,9.148,2246.2,2246.1,6.974186]
[1750648247136,10.0,2246.6,2246.1,6.914086]
[1750648247299,1.914,2246.3,2246.2,0.0601]
[1750648247505,9.144,2246.3,2246.2,0.0601]
[1750648248707,1.914,2246.3,2246.2,0.0601]
[1750648249326,1.914,2246.3,2246.2,4.8501]
[1750648249634,9.144,2246.3,2246.2,7.08428584]
[1750648251279,9.144,2246.3,2246.2,5.6096]
[1750648251560,9.144,2246.3,2246.2,4.79]
[1750648251861,9.144,2246.3,2246.1,1.338786]
[1750648252449,9.203,2246.3,2246.1,1.338786]
[1750648252775,0.3566,2246.2,2246.1,1.338786]
[1750648252944,1.30666,2246.2,2246.1,1.338786]
[1750648258685,18.09032378,2246.2,2246.1,1.338786]
[1750648258866,0.059,2246.0,2245.5,4.79]
[1750648259066,7.229,2245.9,2245.6,1.339361]
[1750648259269,2.2706,2245.8,2245.6,1.339361]
[1750648259589,0.059,2245.7,2245.6,1.339361]
[1750648259793,0.059,2245.7,2244.7,7.08126378]
[1750648259794,10.0,2245.7,2244.7,5.5744]
[1750648259976,0.2976,2245.2,2244.7,0.7844]
[1750648260175,9.143,2245.1,2244.6,0.0601]
[1750648260488,9.202,2245.1,2244.7,1.339749]
[1750648261061,9.143,2245.1,2244.7,1.399849]
[1750648261674,9.143,2245.1,2244.7,1.339749]
[1750648261675,9.97565035,2245.1,2244.7,1.339749]
[1750648261927,0.2976,2245.0,2244.7,1.339749]
[1750648262057,0.3566,2245.0,2244.7,1.339749]
[1750648262386,0.2976,2245.0,2244.7,1.339749]
[1750648263407,0.3566,2245.0,2244.7,1.339749]
[1750648263614,0.2976,2245.0,2244.7,1.339749]
[1750648263776,9.145,2244.9,2244.8,0.0601]
[1750648265482,0.70812638,2245.3,2244.8,0.0601]
[1750648265683,0.70812638,2245.3,2244.7,2.125149]
[1750648265684,11.0006,2245.6,2245.0,0.0601]
[1750648265898,19.146,2245.5,2245.0,0.0601]
[1750648266116,19.146,2245.5,2244.7,9.20641278]
[1750648266279,19.146,2245.5,2244.8,0.0601]
[1750648270229,19.146,2245.5,2244.9,0.8256]
[1750648270527,19.146,2245.5,2245.0,0.0601]
[1750648270700,20.92871035,2245.5,2245.0,0.0601]
[1750648270906,20.98771035,2245.5,2245.0,1.399676]
[1750648271619,20.98771035,2245.5,2245.1,0.0601]
[1750648271620,20.92871035,2245.5,2245.1,0.0601]
[1750648271804,20.92871035,2245.5,2245.0,6.129576]
[1750648271996,0.059,2245.4,2245.0,6.129576]
[1750648272323,0.059,2245.3,2245.0,6.129576]
[1750648272515,7.231,2245.2,2245.0,6.129576]
[1750648273821,7.2885,2245.2,2245.0,6.129576]
[1750648274623,0.0575,2245.1,2245.0,6.129576]